Cogmind - Beta 15 @@@ ROGUE MODE // 2025.10.19 @ 23:59:25 Player: DietSnapple Result: Destroyed by as-21516 with Assembled Blade Performance ------------- Evolutions (0) 0 Regions Visited (4) 800 Robots Destroyed (23) 115 Value Destroyed (410) 410 Prototype IDs (39) 780 Alien Tech Used (0) 0 Bonus (300) 300 TOTAL SCORE: 2405 Bonus ------- Aligned with FarCom 300 Cogmind --------- Core Integrity 0/250 Matter 300/300 Energy 260/265 System Corruption 0% Temperature Cool (50) Movement Rolling (105) Ox1 Location -9/Mines Parts ------- > --- POWER (1) -------- Reinforced Ion Engine > --- PROPULSION (2) --- Armored Wheel Armored Wheel > --- UTILITY (2) ------ Large Storage Unit Structural Scanner > --- WEAPON (2) ------- EM Pulse Gun > --- INVENTORY (15) --- Improved Ion Engine Potential Leg Potential Leg Improved Cooling System Structural Scanner Core Analyzer Advanced ECM Suite Hacking Suite Splice Drone Bay Beam Cannon Makeshift Shrapnel Gun Gauss Cannon Rocket Launcher Datajack Powered Hammer Peak State ------------ > --- POWER ------------ Reinforced Ion Engine > --- PROPULSION ------- Armored Wheel Armored Wheel > --- UTILITY ---------- Large Storage Unit Structural Scanner > --- WEAPON ----------- EM Pulse Gun EM Pulse Gun > --- INVENTORY -------- Improved Ion Engine Potential Leg Potential Leg Improved Cooling System Structural Scanner Core Analyzer Advanced ECM Suite Hacking Suite Splice Drone Bay Beam Cannon Makeshift Shrapnel Gun Gauss Cannon Rocket Launcher Datajack Powered Hammer [Rating: 16] Favorites ----------- Power Reinforced Ion Engine Engine Reinforced Ion Engine Propulsion Armored Wheel Leg Aluminum Leg Wheel Armored Wheel Utility Structural Scanner Device Structural Scanner Storage Large Storage Unit Weapon Assault Rifle Energy Gun EM Pulse Gun Energy Cannon Beam Cannon Ballistic Gun Assault Rifle Special Melee Weapon Datajack Build | -11 -10 -10 -10 -9 ------- Run | Yrd Mat Min Exi Min Slots Evolved . | . . . . . Power . | . . . . . Propulsion . | . . . . . Utility . | . . . . . Weapon . | . . . . . Parts Attached 24 | 6 14 . 4 . Power 4 | 1 3 . . . Engine 4 | 1 3 . . . Core . | . . . . . Reactor . | . . . . . Propulsion 8 | 2 4 . 2 . Treads . | . . . . . Leg 4 | 2 2 . . . Wheel 4 | . 2 . 2 . Hover . | . . . . . Flight . | . . . . . Utility 4 | 1 3 . . . Device 1 | . 1 . . . Storage 3 | 1 2 . . . Processor . | . . . . . Hackware . | . . . . . Protection . | . . . . . Artifact . | . . . . . Weapon 8 | 2 4 . 2 . Energy Gun 2 | . . . 2 . Energy Cannon 2 | . 2 . . . Ballistic Gun 3 | 2 1 . . . Ballistic Cannon . | . . . . . Launcher . | . . . . . Special Weapon . | . . . . . Impact Weapon . | . . . . . Slashing Weapon . | . . . . . Piercing Weapon . | . . . . . Special Melee Weapon 1 | . 1 . . . Unidentified Prototypes . | . . . . . Parts Lost 7 | . 3 3 . 1 Power 2 | . 2 . . . Propulsion 2 | . . 2 . . Utility . | . . . . . Weapon 3 | . 1 1 . 1 Highest Loss Streak 3 | . 2 3 . 1 To Critical Strikes . | . . . . . Average Backups 9 | . 8 8 10 13 Power . | . . 1 1 1 Propulsion 1 | . . 2 1 2 Utility 2 | . 2 2 3 5 Weapon 4 | . 4 2 3 4 Tool/Special . | . . . . . Unused Backups 13 | . 1 . . 12 Power . | . . . . . Propulsion 2 | . . . . 2 Utility 6 | . . . . 6 Weapon 5 | . 1 . . 4 Tool/Special . | . . . . . Average Slot Usage (%) 94 | . 95 99 88 100 Engine 13 | . 13 14 14 14 Leg 9 | . 22 . . . Wheel 18 | . 5 27 27 28 Device 12 | . 9 14 14 14 Storage 14 | . 14 14 14 14 Energy Gun 4 | . . . 1 28 Energy Cannon 9 | . 3 28 12 . Ballistic Gun 10 | . 23 . . . Peak Build Rating 16 | 6 11 12 14 16 Average Rating 10 | 4 7 11 12 15 On Entrance 7 | . 6 11 7 14 Naked Turns . | . . . . . Heaviest Build 37 | 12 37 37 35 35 Greatest Support 24 | 20 24 24 24 24 Greatest Overweight (x) 11 | . 5 11 1 1 Average Overweight (x) . | . . 1 1 1 Largest Inventory Capacity 15 | 8 15 15 15 15 Average Capacity 12 | 6 10 15 15 15 Most Carried 15 | 2 12 11 11 15 Average Carried 9 | . 8 8 10 13 Final Capacity 15 | 8 15 15 15 15 Final Carried 15 | 2 8 11 10 15 Class Distribution -------------------- 100% | Mutant Dominant Class ---------------- Mutant | -10/Materials Mutant | -10/Mines Mutant | -10/Exiles Mutant | -9/Mines Resources | -11 -10 -10 -10 -9 ----------- Run | Yrd Mat Min Exi Min Matter Collected 747 | 260 368 69 . 50 Remotely . | . . . . . Salvage Created 582 | . 446 50 . 86 Parts 41 | . 31 3 . 7 Haulers Intercepted 1 | . 1 . . . Recyclers Shooed . | . . . . . Parts Field Recycled . | . . . . . Retrieved Matter . | . . . . . Parts Self-Destructed . | . . . . . Prevented . | . . . . . Kills | -11 -10 -10 -10 -9 ------- Run | Yrd Mat Min Exi Min Combat Hostiles Destroyed 20 | . 12 3 . 5 Guns 14 | . 11 . . 3 Cannons 4 | . 1 3 . . AOE 2 | . . . . 2 Classes Destroyed 6 | . 5 . . 1 Hauler 1 | . 1 . . . Operator 2 | . 2 . . . Watcher 1 | . 1 . . . Swarmer 13 | . 6 3 . 4 Grunt 6 | . 6 . . . Assembled 1 | . . . . 1 Best Kill Streak 4 | . 3 3 . 4 Combat Bots Only 4 | . 3 3 . 4 Max Kills in Single Turn 2 | . 1 1 . 2 Gunslinging . | . . . . . Exploded 2 | . . . . 2 Melee . | . . . . . Uniques/NPCs Destroyed . | . . . . . Combat | -11 -10 -10 -10 -9 -------- Run | Yrd Mat Min Exi Min Hostile Shots Fired 91 | . 59 20 . 12 Missed 17 | . 11 4 . 2 Hits 74 | . 48 16 . 10 Melee 4 | . . . . 4 Projectile 70 | . 48 16 . 6 AOE 12 | . . 12 . . Critical Strikes 1 | . 1 . . . Damage Taken 1253 | . 553 492 . 208 Core 271 | . 97 110 . 64 Absorbed by Shields . | . . . . . Core Remaining (%) 100 | 100 . . . . Volleys Fired 67 | . 55 4 . 8 Largest 2 | . 2 2 . 2 Hottest 120 | . 80 120 . 80 Shots Fired 127 | . 106 8 . 13 Gun 111 | . 98 . . 13 Cannon 16 | . 8 8 . . Launcher . | . . . . . Special . | . . . . . Kinetic 98 | . 98 . . . Thermal 16 | . 8 8 . . Explosive . | . . . . . Electromagnetic 13 | . . . . 13 Robot Hit Streak 14 | . 14 4 . 10 Robot Miss Streak 4 | . 4 2 . 1 Penetration Max . | . . . . . Secondary Targets 2 | . 1 . . 1 Max Gunslinging Chain 1 | . 1 . . 1 Shots Hit Robots 91 | . 72 4 4 11 Core Hits 36 | . 28 3 . 5 Critical Kills 1 | . 1 . . . Critical Parts Destroyed . | . . . . . Critical Strikes 1 | . 1 . . . Destroy 1 | . 1 . . . Melee Attacks 4 | . . . 4 . Impact . | . . . . . Slashing . | . . . . . Piercing . | . . . . . Sneak Attacks 4 | . . . 4 . Combat Hostiles . | . . . . . Follow-up Attacks . | . . . . . Damage Inflicted 1178 | . 931 72 . 175 Guns 935 | . 818 . . 117 Cannons 177 | . 105 72 . . Explosions 58 | . . . . 58 Melee . | . . . . . Ramming 8 | . 8 . . . Kinetic 818 | . 818 . . . Thermal 235 | . 105 72 . 58 Explosive . | . . . . . Electromagnetic 117 | . . . . 117 Impact . | . . . . . Slashing . | . . . . . Piercing . | . . . . . Highest Corruption . | . . . . . Average Corruption . | . . . . . Corruption Purged . | . . . . . Corruption Blocked . | . . . . . Overload Shots . | . . . . . Overflow Damage 23 | . 5 . . 18 Projectiles 5 | . 5 . . . Explosions 18 | . . . . 18 Melee . | . . . . . Knockbacks . | . . . . . Impact . | . . . . . Kinetic . | . . . . . Secondary . | . . . . . Self-Inflicted Damage 31 | . . . . 31 Shots 1 | . . . . 1 Rammed . | . . . . . Targets Rammed 1 | . 1 . . . Kicked 1 | . 1 . . . Crushed . | . . . . . Highest Temperature 288 | . 94 288 . 132 Average Temperature 65 | . 25 148 . 59 Received Heat Transfer 240 | . 240 . . . Siege Activations . | . . . . . Martial Activations . | . . . . . Shielding Activations . | . . . . . Robots Disrupted . | . . . . . Combat Hostiles . | . . . . . Robots Corrupted . | . . . . . Combat Hostiles . | . . . . . Parts Fried 1 | . 1 . . . Impact Corruptions . | . . . . . Robots Melted . | . . . . . Combat Hostiles . | . . . . . Parts Melted 1 | . 1 . . . Heat Transferred 420 | . 222 148 . 50 Parts Sabotaged . | . . . . . Parts Stolen . | . . . . . Parts Stripped . | . . . . . Power Chain Reactions 1 | . . . . 1 Alert | -11 -10 -10 -10 -9 ------- Run | Yrd Mat Min Exi Min Maximum Alert Level . | . . . . . Low Security (%) 100 | 100 100 100 . 100 Level 1 . | . . . . . Level 2 . | . . . . . Level 3 . | . . . . . Level 4 . | . . . . . Level 5 . | . . . . . High Security . | . . . . . Max Security . | . . . . . Peak Influence 92 | . 88 70 . 92 Initial 12 | . . 12 . . Average 23 | . 27 13 . 21 Influence Increases 528 | . 366 70 . 92 Destroy 0b10 Robot/C 380 | . 240 60 . 80 Destroy 0b10 Robot/NC 20 | . 20 . . . Destroy Leader 84 | . 64 10 . 10 Trap Triggered on 0b10 10 | . 10 . . . Successful Hack 16 | . 16 . . . Destroy Structure 3 | . 1 . . 2 Lose Combat Pursuer 15 | . 15 . . . Influence Decreases 528 | . 333 103 . 92 Entered New Map 21 | . . 21 . . Time Decay 487 | . 313 82 . 92 Lost Part 20 | . 20 . . . Squads Dispatched 3 | . 2 . . 1 Investigation 1 | . . . . 1 Extermination . | . . . . . Reinforcement 2 | . 2 . . . Assault . | . . . . . Garrison . | . . . . . Intercept . | . . . . . Searches Triggered . | . . . . . Construction Impeded . | . . . . . Haulers Reinforced . | . . . . . Active Scanning Responses . | . . . . . Cargo Convoy Interrupts . | . . . . . Stealth | -11 -10 -10 -10 -9 --------- Run | Yrd Mat Min Exi Min Distress Signals 3 | . 3 . . . Communications Jammed . | . . . . . Distress Signals . | . . . . . Times Spotted 36 | . 26 5 . 5 Peak Tracking Total 5 | . 5 3 . 3 Tactical Retreats 1 | . 1 . . . Traps | -11 -10 -10 -10 -9 ------- Run | Yrd Mat Min Exi Min Traps Triggered . | . . . . . Indirectly . | . . . . . Trap Hack Attempts 11 | . 11 . . . Triggered . | . . . . . Disarmed . | . . . . . Reprogrammed 1 | . 1 . . . Reused 1 | . 1 . . . Traps Extracted . | . . . . . Installed . | . . . . . Triggered 1 | . 1 . . . Machines | -11 -10 -10 -10 -9 ---------- Run | Yrd Mat Min Exi Min Machines Disabled . | . . . . . Max in Single Turn . | . . . . . Machines Repaired . | . . . . . Machines Dismantled . | . . . . . Machines Sabotaged . | . . . . . Overloaded Fab Kills . | . . . . . Hacking | -11 -10 -10 -10 -9 --------- Run | Yrd Mat Min Exi Min Machines Accessed 13 | . 6 1 5 1 Terminals 5 | . 5 . . . Fabricators . | . . . . . Repair Stations . | . . . . . Recycling Units 1 | . 1 . . . Scanalyzers . | . . . . . Garrison Access . | . . . . . Total Hacks 60 | . 8 1 50 1 Successful 57 | . 5 1 50 1 Failed 3 | . 3 . . . Catastrophic 1 | . 1 . . . Database Lockouts . | . . . . . Manual 3 | . 2 . 1 . Terminals 7 | . 7 . . . Fabricators . | . . . . . Repair Stations . | . . . . . Recycling Units 1 | . 1 . . . Scanalyzers . | . . . . . Garrison Access . | . . . . . Terminal Hacks 55 | . 3 1 50 1 Record 49 | . . . 49 . Prototype ID Bank 1 | . 1 . . . Open Door 2 | . . 1 . 1 Locate Traps 1 | . 1 . . . Hauler Manifests 1 | . 1 . . . Proto ID Catalog 1 | . . . 1 . Fabricator Hacks . | . . . . . Repair Station Hacks . | . . . . . Recycling Unit Hacks 1 | . 1 . . . Report Inventory 1 | . 1 . . . Scanalyzer . | . . . . . Garrison Access Hacks . | . . . . . Unauthorized Hacks 1 | . 1 . . . Terminals 1 | . 1 . . . Assimilate 1 | . 1 . . . Fabricators . | . . . . . Repair Stations . | . . . . . Recycling Units . | . . . . . Scanalyzers . | . . . . . Garrison Access . | . . . . . Data Cores Recovered . | . . . . . Used . | . . . . . Hacking Detections 5 | . 5 . . . Full Trace Events . | . . . . . Feedback Events . | . . . . . Feedback Blocked . | . . . . . Robot Schematics Acquired . | . . . . . Robots Built . | . . . . . Authchips . | . . . . . Time . | . . . . . Total Robot Build Rating . | . . . . . Part Schematics Acquired . | . . . . . Parts Built . | . . . . . Authchips . | . . . . . Time . | . . . . . Total Part Build Rating . | . . . . . Parts Repaired . | . . . . . Time . | . . . . . Parts Recycled . | . . . . . Recycled Matter . | . . . . . Retrieved Matter . | . . . . . Retrieved Components . | . . . . . Parts Scanalyzed . | . . . . . Part Schematics Acquired . | . . . . . Parts Damaged . | . . . . . Bothacking | -11 -10 -10 -10 -9 ------------ Run | Yrd Mat Min Exi Min Used RIF Installer . | . . . . . Robots Hacked 4 | . . . 4 . Non-combat 3 | . . . 3 . Combat 1 | . . . 1 . Robot Hacks Applied 4 | . . . 4 . parse_system 4 | . . . 4 . Relay Couplers Released . | . . . . . Fabnet Peak Effective % . | . . . . . Robots Rewired . | . . . . . Allies Hacked . | . . . . . Hacks Repelled . | . . . . . Allies | -11 -10 -10 -10 -9 -------- Run | Yrd Mat Min Exi Min Total Allies . | . . . . . Largest Group . | . . . . . Highest-Rated Group . | . . . . . Highest-Rated Ally . | . . . . . Total Orders . | . . . . . Ally Attacks . | . . . . . Total Damage . | . . . . . Kills . | . . . . . Allies Corrupted . | . . . . . Allies Melted . | . . . . . Intel | -11 -10 -10 -10 -9 ------- Run | Yrd Mat Min Exi Min Active Infowar (turns) 2660 | . 921 382 934 423 Structural 2660 | . 921 382 934 423 Robot Analysis Total . | . . . . . Derelict Logs Recovered 3 | . . 1 . 2 Drone Launches . | . . . . . Drone Recoveries . | . . . . . Exploration | -11 -10 -10 -10 -9 ------------- Run | Yrd Mat Min Exi Min Turns Passed 3138 | 77 1322 382 934 423 Spaces Moved 2550 | 59 914 349 851 377 Core 8 | 6 1 1 . . Treads . | . . . . . Legs 779 | 53 726 . . . Wheels 1763 | . 187 348 851 377 Hover . | . . . . . Flight . | . . . . . Fastest Speed 50 | 50 105 105 105 105 Average Speed 109 | 112 117 106 105 105 Slowest Speed 600 | 120 300 600 105 105 Overloaded Moves . | . . . . . Propulsion Burnouts . | . . . . . Robots Hopped . | . . . . . Potential Cave-ins . | . . . . . Cave-ins Triggered . | . . . . . Exploration Rate (%) 65 | 5 93 65 91 73 Regions Visited 4 Branch Regions 3 Pre-discovered Areas 3 | . . 2 1 . Known Exits Taken . | . . . . . Unknown Exits Taken 4 | 1 1 1 1 . Scrap Searched 3 | . . 1 . 2 Spaces Dug . | . . . . . Terrain Destroyed 2 | . . . . 2 Melee . | . . . . . Projectile . | . . . . . AOE 2 | . . . . 2 Terrain Rammed . | . . . . . Walls Destroyed . | . . . . . Machines Disabled . | . . . . . Actions | -11 -10 -10 -10 -9 --------- Run | Yrd Mat Min Exi Min Total 2758 | 66 1056 355 889 392 Wait 40 | . 38 . . 2 Move 2546 | 58 913 348 850 377 Hop . | . . . . . Pick Up 24 | 2 12 3 2 5 Fast Attach 9 | 6 3 . . . Attach 8 | . 4 . 4 . Detach 2 | . 1 . 1 . Swap 10 | . 9 . 1 . Drop 9 | . 9 . . . Fire 67 | . 55 4 . 8 Melee 4 | . . . 4 . Ram . | . . . . . Kick 1 | . 1 . . . Crush . | . . . . . Escape Stasis . | . . . . . Rewire 27 | . . . 27 . Trap 11 | . 11 . . . Miscellaneous . | . . . . . Route ------- -11/Scrapyard -10/Materials (discovered 5 exits: [*Mat x3] / *Min / [*Sub]) -10/Mines (discovered 3 exits: [*Mat x2] / *Exi) -10/Exiles -9/Mines (discovered 1 exit: Mat) History --------- Turn | Location | Event 9 | -11/Scrapyard | Discovered new exit (range 15) 78 | -11/Scrapyard | Entered Materials 101 | -10/Materials | Discovered new exit (range 7) 312 | -10/Materials | Build established: Mutant 575 | -10/Materials | Discovered new exit (range 11) 874 | -10/Materials | Discovered new exit (range 6) 1273 | -10/Materials | Discovered new exit (range 7) 1323 | -10/Materials | Discovered new exit (range 5) 1400 | -10/Materials | Entered Mines 1430 | -10/Mines | Discovered new exit (range 13) 1502 | -10/Mines | Learned location of Mines (-9) 1565 | -10/Mines | Discovered new exit (range 10) 1619 | -10/Mines | Deemed a non-threat by the Exiles lab entrance 1619 | -10/Mines | Discovered new exit (range 6) 1649 | -10/Mines | A weapon hastily lodged in a ceiling crevice suddenly fell to the ground 1673 | -10/Mines | Found the Drone Emporium 1677 | -10/Mines | Found Prototype Device 1719 | -10/Mines | Received a Rocket Launcher from a helpful Derelict 1746 | -10/Mines | Learned location of Storage (-7) 1746 | -10/Mines | Assembled infested the area 1751 | -10/Mines | Assisted by a Guerilla fighting off Assembled 1767 | -10/Mines | Core integrity fell below 50% 1780 | -10/Mines | Core integrity fell below 20% 1782 | -10/Mines | Entered Exiles 1810 | -10/Exiles | Met 8R-AWN 1812 | -10/Exiles | Lost 3 parts (2n1w) 1829 | -10/Exiles | Met EX-HEX 1863 | -10/Exiles | Met EX-BIN 2070 | -10/Exiles | Aligned with FarCom system 2071 | -10/Exiles | Given EX-Vault access code 2103 | -10/Exiles | Opened EX-Vault 2114 | -10/Exiles | Found Potential Leg 2116 | -10/Exiles | Found Potential Leg 2136 | -10/Exiles | Warned to stay clear of 0b10 Research branches 2170 | -10/Exiles | Met EX-DEC 2198 | -10/Exiles | Learned location of Zion (-7) 2242 | -10/Exiles | Visited The Gauntlet 2702 | -10/Exiles | Discovered new exit (range 14) 2716 | -10/Exiles | Left Exiles lab with Potential Leg 2716 | -10/Exiles | Entered Mines 2787 | -9/Mines | Met a Derelict bent on vengeance 2816 | -9/Mines | Identified exit to Materials 2834 | -9/Mines | Met a Derelict shopkeep closing up shop 3060 | -9/Mines | Learned 8 Materials zone layouts 3131 | -9/Mines | Excavation squad dispatched 3131 | -9/Mines | A large section of the Mines collapsed 3139 | -9/Mines | Destroyed by as-21516 with Assembled Blade Last Messages --------------- me!" 02836_ ALERT: Derelict activity detected in mines. Dispatching investigation squad. 02838_ P2-8DG(g): "Well, take what you want I guess, I've had enough of this place!" 02842_ Acquired Gauss Cannon. 02844_ Acquired Imp. Cooling System. 02846_ Acquired Powered Hammer. 02848_ Acquired Adv. ECM Suite. 02850_ Acquired Core Analyzer. 02961_ K-01 Serf collects debris. 02979_ Searching scrap... 02979_ Found Med. Matter Pod. 02979_ Found Terrain Scan Processor. 02979_ Found 39 Matter. 02987_ K-01 Serf collects debris. 03060_ Acquired derelict log, extracted data. Data stored: Materials zone layouts (x8). 03077_ K-01 Serf collects debris. 03131_ ALERT: Suspicious cave-in, suspected derelict activity in mines. Dispatching escorted excavation squad. 03134_ EM Pulse Gun destroyed. 03134_ as-76345 destroyed. Map ----- +----------------------------------------------------+ | ## ####??????## ##???????????? | | ## ####?????## ########???????????? | | # ####?##### ########???????????? | | # ###?##### ##?????????????????? | | ## ##?## ##?????????????????? | | ## ##?## #####?????????????????? | | # ##?## #####?????????????????? | | ##?## ##????????????????????? | | ##?## ##????????????????????? | | ###?## ##????????????????????? | | ####?## ##????????????????????? | | ####### ##????????????????????? | | ###### ####### ##????????????? | | ### ####### ##????????????? | | ##????????????? | | ### ########## ###????????????? | | #### ########## ##?????????????? | | ### ##???##### ##?????????????? | | # ### ##???### ###????????????? | | ###### ##???## ###???????????? | | ###### ##???## ####?????????? | | ##??## ###???### ####????????? | | ###?## ####????### ####???????? | | ###### ####??????### #####??????? | | ##### ##????????### #########???? | | #### ##???????### @%########??? | | ### #####?###### a#### ###??? | | "" ## ########### ##### ##??? | | "" ## ##### ;## ###?? | | "" # #### ## ##?? | | ### ### # #### ##?? | | ## ## ### #########?? | | #### ## ####### ########?? | | #### ####### ####????? | | ##### ###### ####???? | | ###### ### ##### ###???? | | ###### ### #### ###??? | | ###### ### ### ###??? | | ### ###?? | | ########## ## ## ##?? | | ############## #### #### ##?? | | ????????###### ##### ###### ###?? | | ???????????### ###########?#######?? | | ???????????## ##########???#####??? | | ???????????## ########????????????? | | ???????????## ## ###????????????? | | ???????????## ##????????????? | | ???????????## ##????????????? | | ???????????### ######????????????? | | ???????????##############????????????? | +----------------------------------------------------+ Best States ------------- Heat Dissipation 25 Energy Generation 12 Energy Capacity 265 Matter Stores 300 Matter Capacity 300 Sight Range 16 Terrain Scan Density 10 Evasion (%) 55 Item Schematics ----------------- None Robot Schematics ------------------ None Fabricated ------------ Nothing Repaired ---------- Nothing Alien Tech Used ----------------- None Achievements -------------- Hehehe Challenges ------------ None Game ------ Seed RecyclingPointyTether Manual? 0 Play Time 00:22:44 Cumulative 40.6 hours Start 2025.10.19 @ 22:29:24 End 2025.10.19 @ 23:59:25 Sessions 2 Manual Loads 0 Difficulty Rogue Special Mode None Game No. 101 Rogue 94 Adventurer 7 Explorer 0 Win Type - Total 1 Types 1/0/0/0/0/0/0/0/0/0 Lore% 18 Gallery% 34 Achievement% 32 Wizard Run 0 Options --------- Layout 0 ASCII 0 Keyboard 1 Movement Vi Keybinds 0 Fullscreen 1 Font 18/SmallcapsGlow Map View 112x50 Zoom Use 0% Tactical HUD 1 Map Filters NONE Filters NONE Steam X RUN: 4a799fb8-bba3-40da-a409-608d36efc042